fUST/lending_fUST_20240924
["ID","MTS","AMOUNT","RATE_DAILY","PERIOD"]
[339019103,1727130676621,-500.0,0.00033561,30]
[339019104,1727130676630,-500.0,0.00033561,30]
[339019105,1727130676640,-500.0,0.00033561,30]
[339019106,1727130676650,-500.0,0.00033561,30]
[339019107,1727130676659,-500.0,0.00033561,30]
[339019108,1727130676670,-500.0,0.00033561,30]
[339019109,1727130676679,-500.0,0.00033561,30]
[339019110,1727130676689,-741.53,0.00033561,30]
[339019111,1727130676699,-500.0,0.00033561,30]
[339019112,1727130676709,-500.0,0.00033561,30]
[339019113,1727130676718,-500.0,0.00033561,30]
[339019114,1727130676727,-500.0,0.00033561,120]
[339019115,1727130676737,-470.88099192,0.00033561,30]
[339019116,1727130676746,-500.0,0.00033561,30]
[339019117,1727130676756,-500.0,0.00033561,30]
[339019118,1727130676766,-1260.11,0.00033561,30]
[339019119,1727130676777,-500.0,0.00033561,30]
[339019120,1727130676787,-500.0,0.00033561,30]
[339019121,1727130676797,-545.43,0.00033561,30]
[339019122,1727130676806,-500.0,0.00033561,30]
[339019123,1727130676816,-500.0,0.00033561,30]
[339019124,1727130676828,-536.2,0.00033561,30]
[339019125,1727130676837,-500.0,0.00033561,30]
[339019126,1727130676847,-1484.78,0.00033561,30]
[339019127,1727130676857,-500.0,0.00033561,30]
[339019128,1727130676868,-4278.99,0.00033561,21]
[339019129,1727130676877,-500.0,0.00033561,30]
[339019130,1727130676887,-500.0,0.00033561,30]
[339019131,1727130676898,-500.0,0.00033561,30]
[339019132,1727130676909,-288.2290813,0.00033561,30]
[339019133,1727130676918,-500.0,0.00033561,30]
[339019134,1727130676927,-500.0,0.00033561,30]
[339019135,1727130676937,-500.0,0.00033561,30]
[339019136,1727130676947,-500.0,0.00033561,30]
[339019137,1727130676956,-500.0,0.00033561,30]
[339019138,1727130676965,-500.0,0.00033561,30]
[339019139,1727130676975,-500.0,0.00033561,30]
[339019140,1727130676984,-729.6,0.00033561,30]
[339019141,1727130676994,-500.0,0.00033561,30]
[339019142,1727130677004,-500.0,0.00033561,30]
[339019143,1727130677014,-500.0,0.00033561,30]
[339019144,1727130677025,-527.26,0.00033561,30]
[339019145,1727130677034,-1276.76,0.00033561,30]
[339019146,1727130677044,-500.0,0.00033561,30]
[339019147,1727130677053,-500.0,0.00033561,30]
[339019148,1727130677063,-500.0,0.00033561,30]
[339019149,1727130677073,-1463.58,0.00033561,30]
[339019150,1727130677083,-500.0,0.00033561,30]
[339019151,1727130677092,-500.0,0.00033561,30]
[339019152,1727130677101,-1844.92,0.00033561,30]
[339019153,1727130677110,-612.36,0.00033561,30]
[339019154,1727130677120,-500.0,0.00033561,30]
[339019155,1727130677129,-500.0,0.00033561,30]
[339019156,1727130677139,-500.0,0.00033561,7]
[339019157,1727130677149,-231.40029954,0.00033561,30]
[339019158,1727130677158,-500.0,0.00033561,30]
[339019159,1727130677168,-500.0,0.00033561,30]
[339019160,1727130677177,-500.0,0.00033561,30]
[339019161,1727130677292,-500.0,0.00033561,30]
[339019162,1727130677303,-500.0,0.00033561,30]
[339019163,1727130677313,-468.52525314,0.00033561,30]
[339019164,1727130677322,-332.64477265,0.00033561,30]
[339019165,1727130677331,-500.0,0.00033561,30]
[339019166,1727130677341,-500.0,0.00033561,30]
[339019167,1727130677351,-1266.01,0.00033561,30]
[339019168,1727130677361,-500.0,0.00033561,30]
[339019169,1727130677370,-500.0,0.00033561,30]
[339019170,1727130677380,-1200.54,0.00033561,30]
[339019171,1727130677390,-500.0,0.00033561,30]
[339019172,1727130677399,-501.9,0.00033561,30]
[339019173,1727130677409,-500.0,0.00033561,30]
[339019174,1727130677419,-500.0,0.00033561,30]
[339019175,1727130677429,-1081.62,0.00033561,30]
[339019176,1727130677438,-500.0,0.00033561,30]
[339019177,1727130677449,-500.0,0.00033561,30]
[339019178,1727130677458,-500.0,0.00033561,30]
[339019179,1727130677467,-500.0,0.00033561,30]
[339019180,1727130677477,-500.0,0.00033561,30]
[339019181,1727130677486,-1820.79,0.00033561,7]
[339019182,1727130677495,-298.05,0.00033561,30]
[339019183,1727130677505,-694.3,0.00033561,30]
[339019184,1727130677514,-500.0,0.00033561,30]
[339019185,1727130677526,-500.0,0.00033561,30]
[339019186,1727130677535,-500.0,0.00033561,30]
[339019187,1727130677546,-1532.58,0.00033561,30]
[339019188,1727130677556,-1035.06,0.00033561,30]
[339019189,1727130677565,-40342.48,0.00033561,18]
[339019190,1727130677574,-500.0,0.00033561,30]
[339019191,1727130677584,-499.85,0.00033561,2]
[339019192,1727130677593,-736.16,0.00033561,30]
[339019193,1727130677602,-500.0,0.00033561,30]
[339019194,1727130677611,-712.0,0.00033568,2]
[339019195,1727130677621,-150.0,0.00033573,5]
[339019196,1727130677630,-600.0,0.00033589,107]
[339019197,1727130677639,-600.0,0.00033589,107]
[339019198,1727130677650,-1000.0,0.00033621,5]
[339019199,1727130677659,-500.0,0.00033698,10]
[339019200,1727130677668,-719.75,0.00033698,30]
[339019201,1727130677677,-500.0,0.00033698,30]
[339019202,1727130677687,-969.66,0.00033698,30]
[339019203,1727130677697,-711.06,0.00033698,30]
[339019204,1727130677707,-514.47,0.00033698,30]
[339019205,1727130677717,-513.89,0.00033698,30]
[339019206,1727130677727,-500.0,0.00033698,2]
[339019207,1727130677737,-584.13,0.00033698,30]
[339019208,1727130677746,-984.17,0.00033698,30]
[339019209,1727130677756,-683.52,0.00033698,30]
[339019210,1727130677765,-500.0,0.00033698,30]
[339019211,1727130677775,-500.0,0.00033698,30]
[339019212,1727130677784,-610.08,0.00033698,30]
[339019213,1727130677795,-1045.6,0.00033698,7]
[339019214,1727130677804,-859.64,0.00033698,30]
[339019215,1727130677813,-1071.88,0.00033698,30]
[339019216,1727130677826,-607.11,0.00033698,30]
[339019217,1727130677835,-500.0,0.00033698,30]
[339019218,1727130677845,-500.0,0.00033698,30]
[339019219,1727130677855,-500.0,0.00033698,30]
[339019220,1727130677864,-500.0,0.00033698,30]
[339019221,1727130677874,-500.0,0.00033698,30]
[339019222,1727130677884,-500.0,0.00033698,30]
[339019223,1727130677894,-520.8,0.00033698,30]
[339019224,1727130677906,-678.42,0.00033698,30]
[339019225,1727130677916,-500.0,0.00033698,30]
[339019226,1727130677925,-581.01,0.00033698,30]
[339019227,1727130677935,-500.0,0.00033698,30]
[339019228,1727130677944,-531.09211482,0.00033698,30]
[339019229,1727130677954,-624.97,0.00033698,30]
[339019230,1727130677964,-500.0,0.00033698,30]
[339019231,1727130677974,-500.0,0.00033698,30]
[339019232,1727130677983,-746.07,0.00033698,30]
[339019233,1727130677993,-500.0,0.00033698,30]
[339019234,1727130678002,-389.82012682,0.00033698,30]
[339019235,1727130678011,-606.75,0.00033698,30]
[339019236,1727130678022,-500.0,0.00033698,30]
[339019237,1727130678032,-500.0,0.00033698,30]
[339019238,1727130678042,-500.0,0.00033698,30]
[339019239,1727130678053,-500.0,0.00033698,30]
[339019240,1727130678062,-500.0,0.00033698,30]
[339019241,1727130678072,-500.0,0.00033698,30]
[339019242,1727130678081,-500.0,0.00033698,30]
[339019243,1727130678091,-572.02,0.00033698,30]
[339019244,1727130678101,-500.0,0.00033698,30]
[339019245,1727130678111,-527.38,0.00033698,30]
[339019246,1727130678120,-500.0,0.00033698,30]
[339019247,1727130678129,-500.0,0.00033698,30]
[339019248,1727130678139,-2283.61,0.00033698,30]
[339019249,1727130678149,-500.0,0.00033698,30]
[339019250,1727130678158,-500.0,0.00033698,30]
[339019251,1727130678168,-578.39,0.00033698,30]
[339019252,1727130678179,-500.0,0.00033698,30]
[339019253,1727130678188,-500.0,0.00033698,30]
[339019254,1727130678198,-500.0,0.00033698,30]
[339019255,1727130678208,-729.07,0.00033698,25]
[339019256,1727130678217,-500.0,0.00033698,30]
[339019257,1727130678227,-500.0,0.00033698,30]
[339019258,1727130678237,-500.0,0.00033698,30]
[339019259,1727130678246,-500.0,0.00033698,30]
[339019260,1727130678256,-500.0,0.00033698,30]
[339019261,1727130678266,-500.0,0.00033698,30]
[339019262,1727130678276,-500.0,0.00033698,30]
[339019263,1727130678286,-507.64525806,0.00033698,30]
[339019264,1727130678296,-443.100496,0.00033698,30]
[339019265,1727130678307,-509.28512969,0.00033698,30]
[339019266,1727130678317,-500.0,0.00033698,30]
[339019267,1727130678327,-500.0,0.00033698,30]
[339019268,1727130678336,-500.0,0.00033698,30]
[339019269,1727130678346,-500.0,0.00033698,30]
[339019270,1727130678357,-500.0,0.00033698,30]
[339019271,1727130678367,-500.0,0.00033698,30]
[339019272,1727130678376,-500.0,0.00033698,30]
[339019273,1727130678385,-500.0,0.00033698,30]
[339019274,1727130678395,-639.96,0.00033698,30]
[339019275,1727130678404,-3024.97,0.00033698,30]
[339019276,1727130678413,-500.0,0.00033698,30]
[339019277,1727130678423,-404.70231378,0.00033698,30]
[339019278,1727130678433,-500.0,0.00033698,30]
[339019279,1727130678442,-500.0,0.00033698,30]
[339019280,1727130678453,-1122.08,0.00033698,30]
[339019281,1727130678462,-500.0,0.00033698,30]
[339019282,1727130678473,-500.0,0.00033698,30]
[339019283,1727130678483,-500.0,0.00033698,30]
[339019284,1727130678493,-500.0,0.00033698,30]
[339019285,1727130678502,-500.0,0.00033698,30]
[339019286,1727130678511,-500.0,0.00033698,30]
[339019287,1727130678522,-500.0,0.00033698,30]
[339019288,1727130678531,-647.73916848,0.00033698,120]
[339019289,1727130678542,-500.0,0.00033698,2]
[339019290,1727130678552,-500.0,0.00033698,30]
[339019291,1727130678561,-655.57,0.00033698,30]
[339019292,1727130678571,-245.69551634,0.00033698,30]
[339019293,1727130678580,-163.53336637,0.00033698,30]
[339019294,1727130678590,-500.0,0.00033698,30]
[339019295,1727130678600,-500.0,0.00033698,30]
[339019296,1727130678610,-500.0,0.00033698,30]
[339019297,1727130678620,-500.0,0.00033698,30]
[339019298,1727130678630,-500.0,0.00033698,30]
[339019299,1727130678640,-500.0,0.00033698,30]
[339019300,1727130678649,-500.0,0.00033698,30]
[339019301,1727130678659,-196.18,0.00033698,30]
[339019302,1727130678669,-500.0,0.00033698,30]
[339019303,1727130678678,-532.96,0.00033698,30]
[339019304,1727130678688,-500.0,0.00033698,30]
[339019305,1727130678699,-500.0,0.00033698,30]
[339019306,1727130678708,-500.0,0.00033698,30]
[339019307,1727130678718,-500.0,0.00033698,30]
[339019308,1727130678727,-500.0,0.00033698,30]
[339019309,1727130678737,-625.74,0.00033698,30]
[339019310,1727130678746,-500.0,0.00033698,30]
[339019311,1727130678756,-500.0,0.00033698,30]
[339019312,1727130678766,-783.45,0.00033698,30]
[339019313,1727130678775,-551.20086109,0.00033698,30]
[339019314,1727130678784,-500.0,0.00033698,30]
[339019315,1727130678794,-1230.74,0.00033698,30]
[339019316,1727130678803,-500.0,0.00033698,30]
[339019317,1727130678813,-1846.29,0.00033698,30]
[339019318,1727130678824,-500.0,0.00033698,30]
[339019319,1727130678834,-1397.17,0.00033698,2]
[339019320,1727130678844,-500.0,0.00033698,30]
[339019321,1727130678854,-500.0,0.00033698,30]
[339019322,1727130678863,-684.0,0.00033698,30]
[339019323,1727130678874,-604.33,0.00033698,30]
[339019324,1727130678883,-500.0,0.00033698,30]
[339019325,1727130678893,-500.0,0.00033698,30]
[339019326,1727130678904,-500.0,0.00033698,30]
[339019327,1727130678914,-500.0,0.00033698,30]
[339019328,1727130678923,-1000.0,0.00033698,120]
[339019329,1727130678933,-825.29,0.00033698,30]
[339019330,1727130678943,-624.72,0.00033698,30]
[339019331,1727130678953,-500.0,0.00033698,30]
[339019332,1727130678963,-500.0,0.00033698,30]
[339019333,1727130678972,-248.98,0.00033698,30]
[339019334,1727130678982,-500.0,0.00033698,30]
[339019335,1727130678991,-514.15,0.00033698,30]
[339019336,1727130679000,-500.0,0.00033698,30]
[339019337,1727130679010,-500.0,0.00033698,30]
[339019338,1727130679019,-500.0,0.00033698,30]
[339019339,1727130679034,-500.0,0.00033698,30]
[339019340,1727130679045,-500.0,0.00033698,30]
[339019341,1727130679055,-500.0,0.00033698,30]
[339019342,1727130679065,-500.0,0.00033698,30]
[339019343,1727130679076,-500.0,0.00033698,30]
[339019344,1727130679086,-741.53,0.00033698,30]
[339019345,1727130679095,-500.0,0.00033698,30]
[339019346,1727130679105,-500.0,0.00033698,30]
[339019347,1727130679114,-500.0,0.00033698,30]
[339019348,1727130679124,-500.0,0.00033698,120]
[339019349,1727130679133,-500.0,0.00033698,30]
[339019350,1727130679143,-500.0,0.00033698,30]
[339019351,1727130679152,-1260.11,0.00033698,30]
[339019352,1727130679162,-500.0,0.00033698,30]
[339019353,1727130679173,-500.0,0.00033698,30]
[339019354,1727130679183,-545.43,0.00033698,30]
[339019355,1727130679192,-500.0,0.00033698,30]
[339019356,1727130679202,-500.0,0.00033698,30]
[339019357,1727130679212,-536.2,0.00033698,30]
[339019358,1727130679221,-500.0,0.00033698,30]
[339019359,1727130679231,-1484.78,0.00033698,30]
[339019360,1727130679240,-1262.54,0.00033698,120]
[339019361,1727130679250,-1262.54,0.00033698,120]
[339019362,1727130679260,-1262.54,0.00033698,120]
[339019363,1727130679269,-1262.54,0.00033698,120]
[339019364,1727130679282,-1262.54,0.00033698,120]
[339019365,1727130679292,-1262.54,0.00033698,120]
[339019366,1727130679302,-1262.54,0.00033698,120]
[339019367,1727130679311,-1262.54,0.00033698,120]
[339019368,1727130679322,-1262.54,0.00033698,120]
[339019369,1727130679331,-1262.54,0.00033698,120]
[339019370,1727130679341,-1262.54,0.00033698,120]
[339019371,1727130679351,-1262.54,0.00033698,120]
[339019372,1727130679361,-1262.54,0.00033698,120]
[339019373,1727130679371,-1262.54,0.00033698,120]
[339019374,1727130679491,-1262.54,0.00033698,120]
[339019375,1727130679501,-1262.54,0.00033698,120]
[339019376,1727130679511,-1262.54,0.00033698,120]
[339019377,1727130679521,-1262.54,0.00033698,120]
[339019378,1727130679531,-1262.54,0.00033698,120]
[339019379,1727130679541,-1262.54,0.00033698,120]
[339019380,1727130679550,-1262.54,0.00033698,120]
[339019381,1727130679560,-1262.54,0.00033698,120]
[339019382,1727130679569,-1262.54,0.00033698,120]
[339019383,1727130679579,-1262.65154923,0.00033698,120]
[339019384,1727130679589,-500.0,0.00033698,30]
[339019385,1727130679598,-4278.99,0.00033698,21]
[339019386,1727130679607,-608.84953329,0.00033698,30]
[339019387,1727130679616,-500.0,0.00033698,30]
[339019388,1727130679626,-500.0,0.00033698,30]
[339019389,1727130679635,-500.0,0.00033698,30]
[339019390,1727130679645,-500.0,0.00033698,30]
[339019391,1727130679654,-500.0,0.00033698,30]
[339019392,1727130679664,-500.0,0.00033698,30]
[339019393,1727130679674,-500.0,0.00033698,30]
[339019394,1727130679683,-500.0,0.00033698,30]
[339019395,1727130679692,-500.0,0.00033698,30]
[339019396,1727130679702,-729.6,0.00033698,30]
[339019397,1727130679711,-500.0,0.00033698,30]
[339019398,1727130679721,-500.0,0.00033698,30]
[339019399,1727130679731,-500.0,0.00033698,30]
[339019400,1727130679740,-527.26,0.00033698,30]
[339019401,1727130679749,-1276.76,0.00033698,30]
[339019402,1727130679758,-500.0,0.00033698,30]
[339019403,1727130679768,-500.0,0.00033698,30]
[339019404,1727130679778,-271.90715454,0.00033698,30]
[339019405,1727130679788,-1463.58,0.00033698,30]
[339019406,1727130679798,-500.0,0.00033698,30]
[339019407,1727130679807,-500.0,0.00033698,30]
[339019408,1727130679817,-1844.92,0.00033698,30]
[339019409,1727130679830,-612.36,0.00033698,30]
[339019410,1727130679839,-500.0,0.00033698,30]
[339019411,1727130679849,-500.0,0.00033698,30]
[339019412,1727130679859,-500.0,0.00033698,7]
[339019413,1727130679868,-500.0,0.00033698,30]
[339019414,1727130679879,-500.0,0.00033698,30]
[339019415,1727130679888,-500.0,0.00033698,30]
[339019416,1727130679898,-500.0,0.00033698,30]
[339019417,1727130679908,-500.0,0.00033698,30]
[339019418,1727130679918,-500.0,0.00033698,30]
[339019419,1727130679927,-500.0,0.00033698,30]
[339019420,1727130679937,-1266.01,0.00033698,30]
[339019421,1727130679947,-500.0,0.00033698,30]
[339019422,1727130679957,-500.0,0.00033698,30]
[339019423,1727130679966,-1200.54,0.00033698,30]
[339019424,1727130679976,-500.0,0.00033698,30]
[339019425,1727130679985,-501.9,0.00033698,30]
[339019426,1727130679995,-500.0,0.00033698,30]
[339019427,1727130680005,-500.0,0.00033698,30]
[339019428,1727130680015,-1081.62,0.00033698,30]
[339019429,1727130680024,-500.0,0.00033698,30]
[339019430,1727130680034,-500.0,0.00033698,30]
[339019431,1727130680043,-500.0,0.00033698,30]
[339019432,1727130680053,-500.0,0.00033698,30]
[339019433,1727130680062,-213.75842289,0.00033698,30]
[339019434,1727130680072,-1820.79,0.00033698,7]
[339019435,1727130680081,-694.3,0.00033698,30]
[339019436,1727130680091,-500.0,0.00033698,30]
[339019437,1727130680100,-500.0,0.00033698,30]
[339019438,1727130680110,-500.0,0.00033698,30]
[339019439,1727130680119,-1532.58,0.00033698,30]
[339019440,1727130680128,-1035.06,0.00033698,30]
[339019441,1727130680138,-40342.48,0.00033698,18]
[339019442,1727130680147,-500.0,0.00033698,30]
[339019443,1727130680156,-736.16,0.00033698,30]
[339019444,1727130680166,-500.0,0.00033698,30]
[339019445,1727130680176,-250.0,0.00033721,5]
[339019446,1727130680186,-420.0,0.000338,120]
[339019447,1727130680195,-150.0,0.000338,2]
[339019448,1727130680204,-719.75,0.00033835,30]
[339019449,1727130680213,-500.0,0.00033835,30]
[339019450,1727130680223,-969.66,0.00033835,30]
[339019451,1727130680232,-711.06,0.00033835,30]
[339019452,1727130680241,-514.47,0.00033835,30]
[339019453,1727130680251,-513.89,0.00033835,30]
[339019454,1727130680261,-500.0,0.00033835,2]
[339019455,1727130680270,-584.13,0.00033835,30]
[339019456,1727130680281,-984.17,0.00033835,30]
[339019457,1727130680290,-683.52,0.00033835,30]
[339019458,1727130680299,-500.0,0.00033835,30]
[339019459,1727130680309,-500.0,0.00033835,30]
[339019460,1727130680319,-610.08,0.00033835,30]
[339019461,1727130680328,-1045.6,0.00033835,7]
[339019462,1727130680337,-859.64,0.00033835,30]
[339019463,1727130680346,-1071.88,0.00033835,30]
[339019464,1727130680355,-607.11,0.00033835,30]
[339019465,1727130680364,-500.0,0.00033835,30]
[339019466,1727130680374,-500.0,0.00033835,30]
[339019467,1727130680383,-500.0,0.00033835,30]
[339019468,1727130680393,-500.0,0.00033835,30]
[339019469,1727130680403,-500.0,0.00033835,30]
[339019470,1727130680413,-678.42,0.00033835,30]
[339019471,1727130680422,-520.8,0.00033835,30]
[339019472,1727130680431,-500.0,0.00033835,30]
[339019473,1727130680441,-581.01,0.00033835,30]
[339019474,1727130680450,-500.0,0.00033835,30]
[339019475,1727130680460,-624.97,0.00033835,30]
[339019476,1727130680469,-504.32696824,0.00033835,30]
[339019477,1727130680479,-500.0,0.00033835,30]
[339019478,1727130680488,-746.07,0.00033835,30]
[339019479,1727130680497,-220.00037981,0.00033835,30]
[339019480,1727130680506,-606.75,0.00033835,30]
[339019481,1727130680515,-500.0,0.00033835,30]
[339019482,1727130680525,-500.0,0.00033835,30]
[339019483,1727130680535,-500.0,0.00033835,30]
[339019484,1727130680545,-500.0,0.00033835,30]
[339019485,1727130680554,-500.0,0.00033835,30]
[339019486,1727130680563,-500.0,0.00033835,30]
[339019487,1727130680572,-333.89893273,0.00033835,30]
[339019488,1727130680582,-572.02,0.00033835,30]
[339019489,1727130680591,-500.0,0.00033835,30]
[339019490,1727130680600,-527.38,0.00033835,30]
[339019491,1727130680609,-500.0,0.00033835,30]
[339019492,1727130680619,-500.0,0.00033835,30]
[339019493,1727130680628,-2283.61,0.00033835,30]
[339019494,1727130680637,-500.0,0.00033835,30]
[339019495,1727130680645,-500.0,0.00033835,30]
[339019496,1727130680655,-500.0,0.00033835,30]
[339019497,1727130680664,-247.52032642,0.00033835,30]
[339019498,1727130680673,-500.0,0.00033835,30]
[339019499,1727130680682,-729.07,0.00033835,25]
[339019500,1727130680691,-500.0,0.00033835,30]
[339019501,1727130680700,-500.0,0.00033835,30]
[339019502,1727130680709,-500.0,0.00033835,30]
[339019503,1727130680718,-500.0,0.00033835,30]
[339019504,1727130680728,-500.0,0.00033835,30]
[339019505,1727130680736,-500.0,0.00033835,30]
[339019506,1727130680746,-500.0,0.00033835,30]
[339019507,1727130680755,-500.0,0.00033835,30]
[339019508,1727130680765,-500.0,0.00033835,30]
[339019509,1727130680775,-500.0,0.00033835,30]
[339019510,1727130680785,-500.0,0.00033835,30]
[339019511,1727130680794,-500.0,0.00033835,30]
[339019512,1727130680803,-500.0,0.00033835,30]
[339019513,1727130680812,-500.0,0.00033835,30]
[339019514,1727130680821,-500.0,0.00033835,30]
[339019515,1727130680833,-639.96,0.00033835,30]
[339019516,1727130680842,-3024.97,0.00033835,30]
[339019517,1727130680851,-500.0,0.00033835,30]
[339019518,1727130680860,-391.8869205,0.00033835,30]
[339019519,1727130680870,-500.0,0.00033835,30]
[339019520,1727130680879,-1122.08,0.00033835,30]
[339019521,1727130680887,-500.0,0.00033835,30]
[339019522,1727130680898,-500.0,0.00033835,30]
[339019523,1727130680908,-500.0,0.00033835,30]
[339019524,1727130680917,-500.0,0.00033835,30]
[339019525,1727130680926,-500.0,0.00033835,30]
[339019526,1727130680935,-552.44159263,0.00033835,30]
[339019527,1727130680945,-200.11249619,0.00033835,30]
[339019528,1727130680954,-500.0,0.00033835,2]
[339019529,1727130680963,-264.11893172,0.00033835,30]
[339019530,1727130680972,-655.57,0.00033835,30]
[339019531,1727130680982,-500.0,0.00033835,30]
[339019532,1727130680992,-500.0,0.00033835,30]
[339019533,1727130681001,-500.0,0.00033835,30]
[339019534,1727130681011,-500.0,0.00033835,30]
[339019535,1727130681020,-512.01173401,0.00033835,30]
[339019536,1727130681031,-500.0,0.00033835,30]
[339019537,1727130681039,-500.0,0.00033835,30]
[339019538,1727130681048,-500.0,0.00033835,30]
[339019539,1727130681058,-532.96,0.00033835,30]
[339019540,1727130681068,-500.0,0.00033835,30]
[339019541,1727130681078,-500.0,0.00033835,30]
[339019542,1727130681087,-500.0,0.00033835,30]
[339019543,1727130681096,-500.0,0.00033835,30]
[339019544,1727130681106,-500.0,0.00033835,30]
[339019545,1727130681116,-625.74,0.00033835,30]
[339019546,1727130681125,-500.0,0.00033835,30]
[339019547,1727130681136,-500.0,0.00033835,30]
[339019548,1727130681145,-783.45,0.00033835,30]
[339019549,1727130681154,-500.0,0.00033835,30]
[339019550,1727130681163,-1230.74,0.00033835,30]
[339019551,1727130681173,-500.0,0.00033835,30]
[339019552,1727130681182,-1846.29,0.00033835,30]
[339019553,1727130681192,-500.0,0.00033835,30]
[339019554,1727130681201,-1397.17,0.00033835,2]
[339019555,1727130681210,-500.0,0.00033835,30]
[339019556,1727130681220,-500.0,0.00033835,30]
[339019557,1727130681229,-684.0,0.00033835,30]
[339019558,1727130681238,-604.33,0.00033835,30]
[339019559,1727130681248,-500.0,0.00033835,30]
[339019560,1727130681257,-500.0,0.00033835,30]
[339019561,1727130681268,-500.0,0.00033835,30]
[339019562,1727130681278,-500.0,0.00033835,30]
[339019563,1727130681288,-1000.0,0.00033835,120]
[339019564,1727130681297,-825.29,0.00033835,30]
[339019565,1727130681307,-624.72,0.00033835,30]
[339019566,1727130681316,-500.0,0.00033835,30]
[339019567,1727130681326,-500.0,0.00033835,30]
[339019568,1727130681336,-248.98,0.00033835,30]
[339019569,1727130681442,-500.0,0.00033835,30]
[339019570,1727130681452,-514.15,0.00033835,30]
[339019571,1727130681462,-500.0,0.00033835,30]
[339019572,1727130681471,-500.0,0.00033835,30]
[339019573,1727130681482,-500.0,0.00033835,30]
[339019574,1727130681491,-500.0,0.00033835,30]
[339019575,1727130681500,-500.0,0.00033835,30]
[339019576,1727130681509,-500.0,0.00033835,30]
[339019577,1727130681519,-500.0,0.00033835,30]
[339019578,1727130681528,-500.0,0.00033835,30]
[339019579,1727130681537,-741.53,0.00033835,30]
[339019580,1727130681547,-500.0,0.00033835,30]
[339019581,1727130681556,-500.0,0.00033835,30]
[339019582,1727130681566,-500.0,0.00033835,30]
[339019583,1727130681575,-500.0,0.00033835,120]
[339019584,1727130681584,-500.0,0.00033835,30]
[339019585,1727130681593,-500.0,0.00033835,30]
[339019586,1727130681603,-1260.11,0.00033835,30]
[339019587,1727130681612,-500.0,0.00033835,30]
[339019588,1727130681621,-500.0,0.00033835,30]
[339019589,1727130681630,-545.43,0.00033835,30]
[339019590,1727130681640,-500.0,0.00033835,30]
[339019591,1727130681649,-500.0,0.00033835,30]
[339019592,1727130681658,-536.2,0.00033835,30]
[339019593,1727130681667,-500.0,0.00033835,30]
[339019594,1727130681677,-1484.78,0.00033835,30]
[339019595,1727130681686,-500.0,0.00033835,30]
[339019596,1727130681695,-4278.99,0.00033835,21]
[339019597,1727130681704,-500.0,0.00033835,30]
[339019598,1727130681713,-500.0,0.00033835,30]
[339019599,1727130681723,-271.19,0.00033835,30]
[339019600,1727130681732,-500.0,0.00033835,30]
[339019601,1727130681741,-500.0,0.00033835,30]
[339019602,1727130681750,-500.0,0.00033835,30]